bitfinex-derivatives/quotes_BTCF0:USTF0_20210104
["timestamp","ask_amount","ask_price","bid_price","bid_amount"]
[1609788307435,0.14324,31301.0,31295.0,0.13632608]
[1609788308441,0.81764,31301.0,31295.0,0.13632608]
[1609788309234,0.81764,31301.0,31299.0,0.13632608]
[1609788309433,0.14324,31301.0,31299.0,0.13632608]
[1609788309633,5.0316,31300.0,31299.0,0.13632608]
[1609788311136,5.16792608,31300.0,31299.0,0.13632608]
[1609788313039,5.16792608,31300.0,31290.0,4.9391]
[1609788313239,5.0316,31300.0,31296.0,0.13632608]
[1609788314941,0.62279151,31301.0,31296.0,0.13632608]
[1609788315141,4.42812608,31297.0,31296.0,0.13632608]
[1609788315743,4.42812608,31297.0,31282.0,2.02402959]
[1609788315945,0.13632608,31297.0,31282.0,2.02402959]
[1609788316145,4.0261,31289.0,31281.0,2.01618651]
[1609788316345,0.11496,31289.0,31281.0,2.01618651]
[1609788316544,5.1189,31282.0,31281.0,2.01618651]
[1609788317145,5.25522608,31282.0,31281.0,2.15251259]
[1609788318649,5.38047608,31282.0,31281.0,2.15251259]
[1609788319449,5.24415,31282.0,31281.0,2.01618651]
[1609788319650,5.24415,31282.0,31278.0,2.01839169]
[1609788319850,5.24415,31282.0,31279.0,0.13632608]
[1609788321852,0.13632608,31280.0,31279.0,0.13632608]
[1609788327664,4.50392608,31280.0,31279.0,0.13632608]
[1609788328869,0.13632608,31280.0,31279.0,0.13632608]
[1609788329567,5.34582608,31280.0,31279.0,0.13632608]
[1609788329967,0.13632608,31280.0,31279.0,0.13632608]
[1609788330671,5.38982608,31280.0,31279.0,0.13632608]
[1609788331472,0.13632608,31280.0,31279.0,0.13632608]
[1609788331870,4.30612608,31280.0,31279.0,0.13632608]
[1609788336373,4.30612608,31280.0,31269.0,2.02964313]
[1609788336574,0.13632608,31280.0,31269.0,2.02964313]
[1609788336776,4.3444,31270.0,31269.0,2.02964313]
[1609788336974,4.3444,31270.0,31268.0,2.02990248]
[1609788337976,5.01952608,31269.0,31268.0,2.02990248]
[1609788338177,5.01952608,31269.0,31268.0,0.63730248]
[1609788338377,5.01952608,31269.0,31247.0,2.22285009]
[1609788339678,0.02948079,31263.0,31230.0,2.23387505]
[1609788339878,5.2238,31240.0,31230.0,2.23387505]
[1609788340078,0.14915,31246.0,31233.0,0.13632608]
[1609788340278,0.14915,31246.0,31239.0,5.2575]
[1609788340677,0.14915,31246.0,31233.0,0.13632608]
[1609788340877,0.14915,31246.0,31235.0,4.2422]
[1609788341277,0.14915,31246.0,31230.0,2.23387505]
[1609788341479,0.14915,31246.0,31242.0,5.1935]
[1609788342078,0.14915,31246.0,31245.0,0.13632608]
[1609788342477,0.14915,31246.0,31224.0,0.09812]
[1609788342678,0.14915,31246.0,31239.0,4.0958]
[1609788343978,0.28547608,31246.0,31245.0,0.13632608]
[1609788345680,0.28547608,31246.0,31239.0,4.0958]
[1609788346079,0.13632608,31240.0,31239.0,4.23212608]
[1609788348482,0.13632608,31240.0,31239.0,0.13632608]
[1609788348883,4.25402608,31240.0,31239.0,0.13632608]
[1609788354489,0.13632608,31240.0,31239.0,0.13632608]
[1609788354889,0.13632608,31240.0,31232.0,0.2757]
[1609788355494,0.15394,31263.0,31232.0,0.2757]
[1609788355689,7.9904,31246.0,31232.0,0.2757]
[1609788355891,0.15394,31263.0,31232.0,0.2757]
[1609788356092,0.13632608,31233.0,31220.0,0.13632608]
[1609788356492,4.116,31224.0,31220.0,0.13632608]
[1609788358095,0.85202608,31221.0,31220.0,0.13632608]
[1609788359895,0.85202608,31221.0,31209.0,2.02498729]
[1609788360095,0.7157,31221.0,31211.0,0.13632608]
[1609788361297,0.14547,31226.0,31211.0,0.13632608]
[1609788361599,4.8118,31212.0,31211.0,0.13632608]
[1609788362199,0.13632608,31214.0,31211.0,0.13632608]
[1609788362399,0.48075382,31223.0,31211.0,0.13632608]
[1609788363101,0.14547,31226.0,31218.0,4.4835]
[1609788363301,0.10445,31233.0,31218.0,4.4835]
[1609788363503,4.3061,31244.0,31218.0,4.4835]
[1609788364207,4.3061,31244.0,31227.0,0.13632608]
[1609788366210,4.3061,31244.0,31236.0,0.13632608]
[1609788366418,0.2993,31257.0,31236.0,0.13632608]
[1609788366607,3.9791,31255.0,31236.0,0.13632608]
[1609788366807,4.08213,31255.0,31236.0,0.13632608]
[1609788367008,0.10303,31255.0,31236.0,0.13632608]
[1609788367209,4.7651,31241.0,31236.0,0.13632608]
[1609788367409,4.88405,31241.0,31236.0,0.13632608]
[1609788367609,0.11895,31241.0,31236.0,0.13632608]
[1609788368012,0.11895,31241.0,31237.0,0.6915]
[1609788368211,0.11895,31241.0,31240.0,0.13632608]
[1609788368813,0.10303,31255.0,31240.0,0.13632608]
[1609788369012,3.5864,31253.0,31240.0,0.13632608]
[1609788370114,0.13632608,31250.0,31249.0,0.13632608]
[1609788371616,0.10303,31255.0,31249.0,0.13632608]
[1609788371816,5.3539,31259.0,31249.0,0.13632608]
[1609788372016,0.10485,31271.0,31249.0,0.13632608]
[1609788372217,0.10485,31271.0,31256.0,0.13632608]
[1609788372616,0.2801,31273.0,31256.0,0.13632608]
[1609788373017,0.48018102,31260.0,31256.0,0.13632608]
[1609788373217,0.60028102,31260.0,31256.0,0.13632608]
[1609788374220,0.13632608,31257.0,31256.0,0.13632608]
[1609788377025,0.1201,31260.0,31256.0,0.13632608]
[1609788377526,0.1201,31260.0,31256.0,0.66162608]
[1609788378226,0.13632608,31262.0,31256.0,0.66162608]
[1609788380328,0.13632608,31262.0,31261.0,0.13632608]
[1609788382729,4.2902,31274.0,31261.0,0.13632608]
[1609788382930,0.0291896,31279.0,31261.0,0.13632608]
[1609788383732,0.02920498,31281.0,31261.0,0.13632608]
[1609788383931,0.47993415,31276.0,31261.0,0.13632608]
[1609788384236,0.47993415,31276.0,31268.0,0.13632608]
[1609788386234,0.13632608,31269.0,31268.0,0.13632608]
[1609788386835,0.25829608,31269.0,31268.0,0.13632608]
[1609788394443,0.25829608,31269.0,31268.0,0.87232608]
[1609788394743,0.12197,31269.0,31268.0,0.87232608]
[1609788394946,0.01383667,31281.0,31268.0,0.87232608]
[1609788395143,0.01383667,31281.0,31268.0,0.13632608]
[1609788395343,0.01383667,31281.0,31271.0,4.5516]
[1609788396447,0.01383667,31281.0,31280.0,0.13632608]
[1609788398047,0.49369962,31281.0,31280.0,0.13632608]
[1609788398547,0.6300257,31281.0,31280.0,0.13632608]
[1609788398749,0.61618903,31281.0,31280.0,0.13632608]
[1609788399149,0.13632608,31281.0,31280.0,0.13632608]
[1609788400754,0.13632608,31281.0,31280.0,4.79552608]
[1609788400953,0.12525,31282.0,31280.0,4.79552608]
[1609788401155,0.00405203,31286.0,31280.0,4.79552608]
[1609788402457,0.5790548,31288.0,31285.0,0.13632608]
[1609788402458,0.01387924,31288.0,31285.0,0.13632608]
[1609788403558,0.01387924,31288.0,31286.0,0.5942]
[1609788404062,0.61605442,31290.0,31286.0,0.5942]
[1609788404262,0.13632608,31290.0,31286.0,0.5942]
[1609788404462,0.13632608,31290.0,31289.0,0.13632608]
[1609788404662,0.00404787,31293.0,31289.0,0.13632608]
[1609788405465,0.00404276,31295.0,31289.0,0.13632608]
[1609788405664,0.00404276,31295.0,31289.0,4.25052608]
[1609788406467,0.00404276,31295.0,31294.0,0.13632608]
[1609788407365,0.00404276,31295.0,31294.0,0.78812608]
[1609788407566,0.13632608,31298.0,31294.0,0.78812608]
[1609788407765,0.13632608,31298.0,31294.0,0.13632608]
[1609788407966,0.13632608,31298.0,31295.0,4.1955]
[1609788408165,0.01385589,31300.0,31295.0,4.1955]
[1609788408466,0.01385589,31300.0,31299.0,0.13632608]
[1609788408670,0.07868641,32819.0,31299.0,0.87782608]
[1609788408671,0.00403515,31304.0,31299.0,0.87782608]
[1609788410169,0.48353329,31305.0,31299.0,0.87782608]
[1609788410468,0.13632608,31300.0,31299.0,0.87782608]
[1609788410668,0.24948608,31300.0,31299.0,0.87782608]
[1609788413569,0.24948608,31300.0,31299.0,0.39824044]
[1609788414970,0.24948608,31300.0,31296.0,0.13632608]
[1609788414971,0.24948608,31300.0,31281.0,0.10881]
[1609788415173,0.24948608,31300.0,31279.0,0.2976]
[1609788415372,4.5168,31292.0,31281.0,4.3756]
[1609788415672,4.62878,31292.0,31281.0,4.3756]
[1609788416576,0.28148608,31282.0,31281.0,4.3756]
[1609788417376,0.14516,31282.0,31281.0,4.3756]
[1609788417576,0.11198,31292.0,31281.0,4.3756]
[1609788418577,0.11198,31292.0,31291.0,0.74272608]
[1609788420679,0.13632608,31296.0,31291.0,0.74272608]
[1609788420879,0.13632608,31296.0,31291.0,0.13632608]
[1609788421082,0.13632608,31296.0,31295.0,4.0025]
[1609788422581,0.13632608,31296.0,31295.0,4.13882608]
[1609788426486,0.11316,31300.0,31295.0,4.13882608]
[1609788426688,0.11316,31300.0,31299.0,0.13632608]
[1609788426887,0.00404362,31306.0,31299.0,0.13632608]
[1609788427089,0.49331841,31307.0,31304.0,4.4981]
[1609788427489,0.49331841,31307.0,31299.0,0.13632608]
[1609788427490,0.0194388,31308.0,31299.0,0.13632608]
[1609788427689,0.0194388,31308.0,31306.0,4.5587]
[1609788428088,0.01943554,31310.0,31306.0,4.5587]
[1609788428689,0.01943554,31310.0,31309.0,0.13632608]
[1609788428889,0.57748584,31311.0,31309.0,4.27112608]
[1609788429690,0.57748584,31311.0,31309.0,0.13632608]
[1609788429891,0.57748584,31311.0,31310.0,5.1157]
[1609788430292,0.11811979,31315.0,31310.0,5.26941]
[1609788430493,0.57712198,31318.0,31310.0,5.26941]
[1609788430691,0.57712198,31318.0,31317.0,0.13632608]
[1609788430892,0.57712198,31318.0,31317.0,0.24907608]
[1609788431292,0.48242198,31318.0,31317.0,0.24907608]
[1609788431895,0.69127652,31348.0,31317.0,0.34527608]
[1609788432094,0.69127652,31348.0,31322.0,3.9579]
[1609788432698,0.69127652,31348.0,31317.0,0.20895]
[1609788432897,0.69127652,31348.0,31344.0,3.6663]
[1609788433299,0.11629,31350.0,31347.0,0.13632608]
[1609788434198,0.11629,31350.0,31347.0,4.49442608]
[1609788435199,0.13632608,31348.0,31347.0,4.49442608]
[1609788436302,0.11629,31350.0,31347.0,4.49442608]
[1609788436500,0.11629,31350.0,31347.0,0.13632608]
[1609788437701,0.11629,31350.0,31348.0,0.0956]
[1609788438101,0.2737,31365.0,31359.0,4.0809]
[1609788439305,0.2737,31365.0,31364.0,0.13632608]
[1609788439905,0.68586036,31383.0,31364.0,0.13632608]
[1609788440105,0.97876036,31383.0,31371.0,5.2077]
[1609788440706,0.2929,31383.0,31371.0,5.2077]
[1609788441208,0.2929,31383.0,31379.0,0.13632608]
[1609788441407,0.2929,31383.0,31382.0,5.1786]
[1609788442507,0.2929,31383.0,31355.0,0.10607]
[1609788442707,0.41563,31383.0,31364.0,4.1563]
[1609788443308,0.41563,31383.0,31378.0,0.13632608]
[1609788443908,0.41563,31383.0,31378.0,5.11132608]
[1609788445312,0.41563,31383.0,31382.0,0.13632608]
[1609788446714,0.41563,31383.0,31382.0,4.41772608]
[1609788446916,0.41563,31383.0,31382.0,4.51322608]
[1609788447717,0.41563,31383.0,31382.0,4.41772608]
[1609788447916,0.41563,31383.0,31382.0,4.2814]
[1609788448119,0.12273,31383.0,31382.0,4.2814]
[1609788448318,0.2864,31411.0,31374.0,0.096]
[1609788448518,0.5635,31411.0,31388.0,4.6016]
[1609788448719,0.5635,31411.0,31381.0,0.0941]
[1609788449119,0.66336,31411.0,31381.0,0.0941]
[1609788449319,0.66336,31411.0,31397.0,0.13632608]
[1609788449719,0.66336,31411.0,31403.0,4.4889]
[1609788449922,0.37696,31411.0,31403.0,4.4889]
[1609788450321,0.37696,31411.0,31381.0,0.0941]
[1609788450521,4.1986,31407.0,31384.0,4.0233]
[1609788450721,0.37696,31411.0,31381.0,0.0941]
[1609788450921,4.7846,31399.0,31370.0,4.10157]
[1609788451120,4.90507,31399.0,31370.0,4.10157]
[1609788451321,4.90507,31399.0,31379.0,0.13632608]
[1609788451925,0.12047,31399.0,31379.0,0.13632608]
[1609788452124,0.12047,31399.0,31382.0,4.3288]
[1609788452424,0.12047,31399.0,31383.0,0.0962]
[1609788453325,0.12047,31399.0,31395.0,0.13632608]
[1609788455327,0.13632608,31396.0,31395.0,0.13632608]
[1609788456028,0.13632608,31396.0,31395.0,3.88442608]
[1609788456328,0.12047,31399.0,31395.0,3.88442608]
[1609788456529,0.2823,31410.0,31395.0,3.88442608]
[1609788456729,0.37696,31411.0,31395.0,0.13632608]
[1609788456931,0.37696,31411.0,31403.0,4.6278]
[1609788457329,0.37696,31411.0,31410.0,0.13632608]
[1609788457330,0.51328608,31411.0,31410.0,0.13632608]
[1609788458332,0.09986,31411.0,31410.0,0.13632608]
[1609788458531,0.2708,31423.0,31410.0,0.87132608]
[1609788458932,0.2708,31423.0,31410.0,0.13632608]
[1609788459331,0.2708,31423.0,31398.0,0.0956]
[1609788459332,0.2858,31436.0,31422.0,0.13632608]
[1609788459734,0.2858,31436.0,31426.0,4.6335]
[1609788460135,0.1771,31455.0,31426.0,4.6335]
[1609788460343,0.2802,31454.0,31408.0,0.0955]
[1609788460536,0.2802,31454.0,31434.0,5.2967]
[1609788460736,0.2802,31454.0,31415.0,0.0943]
[1609788460936,0.3784,31454.0,31441.0,4.7247]
[1609788461335,0.3784,31454.0,31446.0,0.13632608]
[1609788461736,0.3784,31454.0,31446.0,0.78632608]
[1609788463039,0.3784,31454.0,31446.0,0.13632608]
[1609788463239,0.13632608,31447.0,31446.0,0.13632608]
[1609788463640,0.25709608,31447.0,31446.0,0.13632608]
[1609788464445,0.25709608,31447.0,31438.0,4.8272]
[1609788465146,0.25709608,31447.0,31377.0,1.85777615]
[1609788465344,0.12077,31447.0,31377.0,1.85777615]
[1609788465745,5.0318,31446.0,31410.0,4.222]
[1609788467249,5.0318,31446.0,31427.0,0.13632608]
[1609788468349,0.12077,31447.0,31408.0,0.10634]
[1609788468549,0.3784,31454.0,31427.0,3.8783]
[1609788469354,0.3784,31454.0,31437.0,0.13632608]
[1609788471258,0.13632608,31438.0,31437.0,4.76912608]
[1609788471457,0.25605608,31438.0,31437.0,5.10182608]
[1609788472259,0.25605608,31438.0,31437.0,0.13632608]
[1609788472663,0.25605608,31438.0,31432.0,3.9958]
[1609788473261,0.11973,31438.0,31435.0,0.13632608]
[1609788473862,0.11973,31438.0,31432.0,3.9958]
[1609788475665,0.13632608,31433.0,31432.0,4.13212608]
[1609788475864,0.13632608,31433.0,31432.0,0.13632608]
[1609788476065,0.13632608,31433.0,31422.0,0.0956]
[1609788476566,0.13632608,31433.0,31415.0,0.0966]
[1609788476766,0.13632608,31433.0,31401.0,4.2598]
[1609788477566,0.13632608,31433.0,31350.0,0.2905]
[1609788477567,0.13632608,31433.0,31369.0,1.87048945]
[1609788477768,4.2652,31425.0,31404.0,0.13632608]
[1609788477969,4.40391,31425.0,31404.0,0.13632608]
[1609788479671,0.13632608,31405.0,31404.0,0.13632608]
[1609788481273,0.13632608,31405.0,31386.0,4.8664]
[1609788481472,0.13632608,31405.0,31385.0,0.11633]
[1609788481872,0.1583,31408.0,31397.0,0.13632608]
[1609788483875,0.13632608,31398.0,31397.0,0.13632608]
[1609788484274,0.13632608,31398.0,31385.0,0.11633]
[1609788484475,0.13632608,31398.0,31364.0,0.096]
[1609788484676,5.1263,31394.0,31365.0,3.9083]
[1609788484876,0.13632608,31398.0,31347.0,2.24311296]
[1609788485077,4.394,31386.0,31350.0,6.90296581]
[1609788485876,0.13632608,31374.0,31370.0,0.13632608]
[1609788486276,0.13600747,31374.0,31370.0,0.13632608]
[1609788486679,4.394,31386.0,31370.0,0.13632608]
[1609788486877,0.2714,31393.0,31370.0,0.27106608]
[1609788487477,0.2714,31393.0,31370.0,0.13474]
[1609788487979,0.2714,31393.0,31382.0,0.13632608]
[1609788488579,0.2714,31393.0,31370.0,0.13474]
[1609788489480,0.2714,31393.0,31371.0,0.7285]
[1609788489880,0.2714,31393.0,31370.0,0.13474]
[1609788490081,0.2714,31393.0,31373.0,4.9177]
[1609788490281,0.2714,31393.0,31374.0,0.0948]
[1609788490583,0.2714,31393.0,31392.0,0.13632608]
[1609788490784,0.2714,31393.0,31392.0,0.23292608]
[1609788490982,0.2513,31393.0,31392.0,0.23292608]
[1609788491184,0.1249,31393.0,31392.0,0.23292608]
[1609788491384,0.1249,31393.0,31392.0,0.13632608]
[1609788492986,0.1249,31393.0,31378.0,0.15677]
[1609788494691,0.1249,31393.0,31386.0,0.13632608]
[1609788495894,0.1249,31393.0,31378.0,0.15677]
[1609788496092,0.1249,31393.0,31371.0,4.3292]
[1609788496694,0.1249,31393.0,31380.0,0.13632608]
[1609788496895,0.1249,31393.0,31371.0,4.3292]
[1609788498095,0.1249,31393.0,31355.0,1.93106812]
[1609788498294,4.258,31390.0,31356.0,3.7468]
[1609788498695,0.289,31389.0,31367.0,0.13632608]
[1609788499096,0.289,31389.0,31356.0,3.7468]
[1609788499298,0.289,31389.0,31351.0,1.94255043]
[1609788499498,4.93564,31384.0,31351.0,1.94255043]
[1609788499898,4.93564,31384.0,31345.0,4.8945]
[1609788500599,4.93564,31384.0,31370.0,0.13632608]
[1609788502601,4.93564,31384.0,31374.0,0.13632608]
[1609788504807,4.93564,31384.0,31378.0,0.13632608]
[1609788506609,0.13632608,31379.0,31375.0,0.0961]
[1609788510713,0.12454,31384.0,31378.0,0.13632608]
[1609788510913,0.13632608,31387.0,31378.0,0.13632608]
[1609788512214,0.1249,31393.0,31378.0,0.13632608]
[1609788512716,0.1249,31393.0,31392.0,0.13632608]
[1609788513816,0.1249,31393.0,31392.0,0.23112608]
[1609788517022,0.13632608,31395.0,31392.0,0.23112608]
[1609788517221,0.1583,31408.0,31392.0,0.23112608]
[1609788517621,0.2842,31410.0,31392.0,0.23112608]
[1609788517825,5.3683,31410.0,31392.0,0.23112608]
[1609788518224,5.3683,31410.0,31392.0,0.13632608]
[1609788518725,0.13632608,31393.0,31392.0,0.13632608]
[1609788519728,0.1528,31398.0,31392.0,0.13632608]
[1609788520829,0.13632608,31393.0,31392.0,0.13632608]
[1609788523232,0.13632608,31393.0,31377.0,0.14897]
[1609788523433,0.13632608,31393.0,31373.0,3.7001]
[1609788523832,3.7274,31397.0,31373.0,3.7001]
[1609788524934,0.13632608,31374.0,31368.0,0.11991]
[1609788525134,0.13632608,31374.0,31363.0,2.10928421]
[1609788525533,0.15531,31385.0,31367.0,0.0962]
[1609788526835,0.15531,31385.0,31384.0,0.13632608]
[1609788528739,0.2782,31397.0,31384.0,0.13632608]
[1609788528939,0.13632608,31385.0,31384.0,0.13632608]
[1609788529740,0.15104,31385.0,31384.0,0.13632608]
[1609788530039,0.15104,31385.0,31382.0,0.0961]
[1609788530440,0.15104,31385.0,31374.0,0.0943]
[1609788530841,0.15104,31385.0,31384.0,0.13632608]
[1609788534647,0.15104,31385.0,31384.0,0.23102608]
[1609788535046,0.13632608,31391.0,31384.0,0.23102608]
[1609788536850,0.13632608,31391.0,31390.0,0.13632608]
[1609788537051,0.13632608,31391.0,31390.0,0.23052608]
[1609788537651,0.2782,31397.0,31390.0,0.23052608]
[1609788538451,0.1528,31398.0,31390.0,0.23052608]
[1609788538656,0.57747552,31410.0,31390.0,0.23052608]
[1609788538853,0.57747552,31410.0,31408.0,0.13632608]
[1609788539758,0.43307552,31410.0,31409.0,5.2301]
[1609788539956,0.27237552,31410.0,31409.0,5.2301]
[1609788540356,0.13017552,31410.0,31409.0,5.2301]
[1609788540557,0.61774916,31412.0,31409.0,5.2301]
[1609788540759,0.39614916,31412.0,31409.0,5.2301]
[1609788540962,0.26964916,31412.0,31409.0,5.2301]
[1609788541160,0.65558147,31415.0,31409.0,5.2301]
[1609788541659,0.59118147,31415.0,31409.0,5.2301]
[1609788541860,0.51208147,31415.0,31409.0,5.2301]
[1609788542264,1.55348551,31430.0,31409.0,5.2301]
[1609788542459,5.1063,31443.0,31409.0,5.2301]
[1609788542862,5.1063,31443.0,31436.0,0.13632608]
[1609788543063,0.96313273,31445.0,31436.0,0.13632608]
[1609788543463,5.129,31453.0,31425.0,4.5834]
[1609788543963,5.129,31453.0,31426.0,0.0963]
[1609788544565,0.45164194,31452.0,31426.0,0.0963]
[1609788544766,0.45164194,31452.0,31425.0,4.5834]
[1609788544965,0.45164194,31452.0,31432.0,0.13632608]
[1609788546868,0.13632608,31433.0,31432.0,0.13632608]
[1609788547469,0.13632608,31433.0,31432.0,0.82762608]
[1609788547670,0.10018,31438.0,31432.0,0.82762608]
[1609788547869,0.10018,31438.0,31432.0,0.92182608]
[1609788548971,0.10018,31438.0,31437.0,0.13632608]
[1609788549171,0.10018,31438.0,31437.0,0.79602608]
[1609788551475,0.13632608,31441.0,31437.0,0.79602608]
[1609788552379,0.2939,31455.0,31437.0,0.79602608]
[1609788552577,0.9567447,31463.0,31438.0,0.0941]
[1609788552978,4.6359,31466.0,31450.0,0.13632608]
[1609788553178,0.2942,31466.0,31450.0,0.13632608]
[1609788554580,0.2942,31466.0,31433.0,0.1529]
[1609788554781,0.41418,31464.0,31433.0,0.1529]
[1609788555581,0.13632608,31434.0,31433.0,0.28922608]
[1609788555783,0.13632608,31434.0,31433.0,0.13632608]
[1609788556584,0.14316,31444.0,31433.0,5.46062608]
[1609788556784,0.08016,31444.0,31433.0,5.55712608]
[1609788556984,0.01666,31444.0,31433.0,5.55712608]
[1609788557284,6e-05,31444.0,31433.0,5.66902608]
[1609788557485,0.41418,31464.0,31433.0,5.66902608]
[1609788557684,0.41418,31464.0,31455.0,0.13632608]
[1609788559087,0.41418,31464.0,31438.0,5.2371]
[1609788559687,0.41418,31464.0,31446.0,0.13632608]
[1609788560490,0.41418,31464.0,31438.0,5.2371]
[1609788560690,0.41418,31464.0,31410.0,2.01507328]
[1609788560890,4.0602,31459.0,31416.0,3.6295]
[1609788561691,4.0602,31459.0,31436.0,0.13632608]
[1609788562091,4.0602,31459.0,31416.0,3.6295]
[1609788562300,0.0954,31459.0,31409.0,1.87769803]
[1609788562492,4.26338,31442.0,31409.0,1.87769803]
[1609788563093,0.2802,31441.0,31409.0,1.87769803]
[1609788563294,0.2802,31441.0,31403.0,2.0175614]
[1609788563694,0.2802,31441.0,31424.0,0.13632608]
[1609788563895,0.2802,31441.0,31403.0,2.0175614]
[1609788564495,0.2802,31441.0,31403.0,1.8814014]
[1609788564696,0.272,31440.0,31402.0,3.8519]
[1609788564895,0.272,31440.0,31401.0,0.096]
[1609788565096,4.1686,31432.0,31399.0,0.0955]
[1609788565298,4.1686,31432.0,31391.0,1.88930066]
[1609788565299,4.28435,31432.0,31391.0,1.88930066]
[1609788565597,4.28435,31432.0,31413.0,0.13632608]
[1609788566198,0.11575,31432.0,31413.0,0.13632608]
[1609788567700,0.11575,31432.0,31419.0,0.13632608]
[1609788568401,0.11575,31432.0,31411.0,5.0874]
[1609788569703,0.11575,31432.0,31416.0,0.13632608]
[1609788569903,0.11575,31432.0,31417.0,0.0945]
[1609788570606,4.9044,31428.0,31417.0,0.0945]
[1609788570904,5.05602,31428.0,31417.0,0.0945]
[1609788571805,0.13632608,31418.0,31417.0,0.0945]
[1609788572004,0.27679608,31418.0,31417.0,0.0945]
[1609788575109,0.27679608,31418.0,31416.0,0.13632608]
[1609788576915,0.27679608,31418.0,31417.0,0.0942]
[1609788578016,0.14047,31418.0,31417.0,0.0942]
[1609788578416,0.15162,31428.0,31416.0,0.13632608]
[1609788578614,0.272,31440.0,31416.0,0.13632608]
[1609788578817,0.6275,31437.0,31416.0,0.13632608]
[1609788579416,0.6275,31437.0,31417.0,0.0947]
[1609788579615,0.6275,31437.0,31413.0,3.78172608]
[1609788579816,0.6275,31437.0,31422.0,0.13632608]
[1609788580017,0.6275,31437.0,31423.0,0.0957]
[1609788580919,0.6275,31437.0,31413.0,3.78172608]
[1609788581819,0.6275,31437.0,31419.0,0.13632608]
[1609788582919,0.6275,31437.0,31413.0,3.78172608]
[1609788583720,0.6275,31437.0,31414.0,0.13632608]
[1609788584121,0.6275,31437.0,31413.0,3.78172608]
[1609788585722,0.13632608,31414.0,31413.0,3.78172608]
[1609788585925,0.25261608,31414.0,31405.0,0.13632608]
[1609788586323,0.25261608,31414.0,31396.0,4.4388]
[1609788586526,0.25261608,31414.0,28236.0,0.0312247]
[1609788586727,0.25261608,31414.0,31388.0,2.00262276]
[1609788587728,0.13632608,31389.0,31388.0,2.13894884]
[1609788587928,0.13632608,31389.0,31388.0,0.13632608]
[1609788588528,0.24653608,31389.0,31388.0,0.13632608]
[1609788589428,0.24653608,31389.0,31376.0,4.3299]
[1609788589628,0.24653608,31389.0,31377.0,0.0944]
[1609788589830,0.11021,31389.0,31381.0,0.13632608]
[1609788590036,0.11021,31389.0,31382.0,0.0952]
[1609788591330,0.11021,31389.0,31381.0,0.13632608]
[1609788591732,0.11021,31389.0,31388.0,0.13632608]
[1609788591931,0.11021,31389.0,31380.0,3.64774192]
[1609788593833,0.14136,31396.0,31383.0,0.13632608]
[1609788594239,0.0193165,31412.0,31383.0,0.13632608]
[1609788594435,0.15959,31396.0,31383.0,0.13632608]
[1609788594935,0.15959,31396.0,31384.0,0.0958]
[1609788595135,0.15959,31396.0,31383.0,0.13632608]
[1609788595834,0.13632608,31384.0,31383.0,0.13632608]
[1609788596034,0.13632608,31384.0,31383.0,0.23142608]
[1609788596234,0.11252608,31384.0,31383.0,0.23142608]
[1609788596434,0.06532608,31384.0,31383.0,0.23142608]
[1609788596635,4.26409,31396.0,31383.0,0.13632608]
[1609788597139,0.15959,31396.0,31383.0,0.13632608]
[1609788597737,0.47822483,31388.0,31384.0,0.0943]
[1609788597937,0.41482483,31388.0,31387.0,0.13632608]
[1609788598138,0.36702483,31388.0,31387.0,0.13632608]
[1609788598639,0.15959,31396.0,31387.0,0.13632608]
[1609788599744,5.1952,31410.0,31387.0,0.13632608]
[1609788599942,5.1952,31410.0,31384.0,0.7566]
[1609788600342,5.1952,31410.0,31385.0,0.0968]
[1609788601145,5.1952,31410.0,31384.0,0.7566]
[1609788601845,5.1952,31410.0,31387.0,0.13632608]
[1609788602247,0.47817909,31391.0,31387.0,0.13632608]
[1609788603146,0.34967909,31391.0,31387.0,0.13632608]
[1609788604148,0.28447909,31391.0,31387.0,0.13632608]
[1609788604751,0.21837909,31391.0,31387.0,0.13632608]
[1609788605149,0.17127909,31391.0,31387.0,0.13632608]
[1609788605949,0.13632608,31395.0,31387.0,0.13632608]
[1609788606149,0.07302608,31395.0,31387.0,0.13632608]
[1609788607355,0.07302608,31395.0,31384.0,0.7566]
[1609788607853,0.13509,31397.0,31390.0,0.13632608]
[1609788608252,5.1952,31410.0,31390.0,0.13632608]
[1609788609852,0.13632608,31391.0,31390.0,0.13632608]
[1609788610653,0.61450517,31391.0,31390.0,0.13632608]
[1609788613660,0.47817909,31391.0,31390.0,0.13632608]
[1609788613860,0.61450517,31391.0,31390.0,0.13632608]
[1609788615261,0.13632608,31391.0,31390.0,0.13632608]
[1609788617062,0.11115,31396.0,31390.0,0.13632608]
[1609788617264,5.1952,31410.0,31390.0,0.13632608]
[1609788617966,0.13632608,31391.0,31390.0,0.13632608]
[1609788618168,0.11417,31399.0,31390.0,0.13632608]
[1609788618566,0.11417,31399.0,31392.0,4.6138]
[1609788619168,0.11417,31399.0,31392.0,4.13560566]
[1609788619769,0.06437,31399.0,31392.0,4.13560566]
[1609788619968,0.59501876,31413.0,31398.0,0.13632608]
[1609788620369,0.59501876,31413.0,31401.0,5.0154]
[1609788620568,0.59501876,31413.0,31402.0,0.0954]
[1609788621069,0.59501876,31413.0,31402.0,4.317]
[1609788621269,0.46231876,31413.0,31402.0,0.0954]
[1609788621469,0.11629,31414.0,31406.0,4.3959]
[1609788621470,0.00250876,31414.0,31406.0,4.3959]
[1609788621669,0.68962608,31415.0,31406.0,4.3959]
[1609788621871,0.34792608,31415.0,31414.0,0.13632608]
[1609788622072,0.27432608,31415.0,31414.0,0.13632608]
[1609788622270,0.83336178,31417.0,31414.0,0.13632608]
[1609788622471,0.63216178,31417.0,31414.0,0.13632608]
[1609788622670,0.51796178,31417.0,31414.0,0.13632608]
[1609788622870,0.46736178,31417.0,31414.0,0.13632608]
[1609788623071,0.45376178,31417.0,31414.0,0.13632608]
[1609788623274,0.95863144,31432.0,31414.0,0.13632608]
[1609788623471,0.94873144,31432.0,31419.0,4.7318]
[1609788623671,0.87343144,31432.0,31419.0,4.7318]
[1609788623872,0.84213144,31432.0,31414.0,0.13632608]
[1609788624071,0.84127144,31432.0,31427.0,4.94]
[1609788624271,0.84127144,31432.0,31416.0,0.11625]
[1609788624471,0.76167144,31432.0,31431.0,4.95012608]
[1609788624873,0.12644,31432.0,31431.0,4.95012608]
[1609788625274,0.6985121,31457.0,31431.0,4.95012608]
[1609788625677,0.6985121,31457.0,31431.0,5.04412608]
[1609788626179,0.6985121,31457.0,31431.0,4.95012608]